[Event "RUS-chT Premier 2021"]
[White "Truskavetsky,Alexandr"]
[Black "Chigaev,Maksim"]
[WhiteTeam "Киммерия"]
[BlackTeam "Wildberries Молодёжка"]
[Site "Sochi"]
[Round "4.1"]
[Annotator "RC"]
[Result "0-1"]
[Date "2021.05.04"]
[WhiteElo "2387"]
[BlackElo "2631"]
[PlyCount "103"]
[TimeControl "60"]

1. d4 {[%emt 0:0:0]} Nf6 {[%emt 0:0:0]} 2. Nf3 {[%emt 0:0:0]} g6 {[%emt 0:0:0]
} 3. g3 {[%emt 0:0:15]} Bg7 {[%emt 0:0:1]} 4. Bg2 {[%emt 0:0:0]} c5 {[%emt 0:0:5]} 5. dxc5 {[%emt 0:5:6]} Qa5+ {[%emt 0:1:59]} 6. Nfd2 {[%emt 0:1:26]} Qxc5 {[%emt 0:4:17]} 7. Nc3 {[%emt 0:3:28]} 0-0 {[%emt 0:0:0]} 8. Nb3 {[%emt 0:0:13]} Qc7 {[%emt 0:0:40]} 9. Bg5 {[%emt 0:0:9]} Qd8 {[%emt 0:11:24]
} 10. Qd2 {[%emt 0:0:37]} Nc6 {[%emt 0:0:48]} 11. h4 {[%emt 0:0:0]} h5 {[%emt 0:0:42]} 12. Bxf6 {[%emt 0:4:56]} Bxf6 {[%emt 0:0:8]} 13. g4 {[%emt 0:0:6]} hxg4 {[%emt 0:0:40]} 14. h5 {[%emt 0:0:29]} g5 {[%emt 0:0:0]} 15. Ne4 {[%emt 0:17:8]} d5 {[%emt 0:18:17]} 16. Nxf6+ {[%emt 0:4:44]} exf6 {[%emt 0:0:8]} 17. 0-0-0 {[%emt 0:3:35]} Be6 {[%emt 0:1:57]} 18. f4 {[%emt 0:7:46]
} gxf3 {[%emt 0:7:19]} 19. exf3 {[%emt 0:1:14]} Qd6 {[%emt 0:0:0]} 20. f4 {[%emt 0:0:44]} Qxf4 {[%emt 0:0:20]} 21. Qxf4 {[%emt 0:0:17]} gxf4 {[%emt 0:0:4]} 22. Rh4 {[%emt 0:2:6]} Kg7 {[%emt 0:11:45]} 23. Rxf4 {[%emt 0:12:40]
} Rh8 {[%emt 0:1:43]} 24. Bf3 {[%emt 0:1:1]} Rh6 {[%emt 0:0:0]} 25. Nc5 {[%emt 0:26:18]} b6 {[%emt 0:18:14]} 26. Nb7 {[%emt 0:1:37]} Ne5 {[%emt 0:1:38]} 27. Be2 {[%emt 0:0:16]} Kf8 {[%emt 0:1:50]} 28. Nd6 {[%emt 0:0:22]
} Ke7 {[%emt 0:1:32]} 29. Nf5+ {[%emt 0:3:6]} Bxf5 {[%emt 0:0:0]} 30. Rxf5 {[%emt 0:0:6]} Rg8 {[%emt 0:0:31]} 31. Rf4 {[%emt 0:2:2]} Rg2 {[%emt 0:0:55]} 32. Re1 {[%emt 0:0:10]} Rh8 {[%emt 0:2:19]} 33. Rd4 {[%emt 0:1:33]
} Rd8 {[%emt 0:0:31]} 34. b3 {[%emt 0:0:58]} Rh2 {[%emt 0:0:0]} 35. a4 {[%emt 0:0:51]} a5 {[%emt 0:0:16]} 36. Bf3 {[%emt 0:1:7]} Rh3 {[%emt 0:2:6]
} 37. Be2 {[%emt 0:0:15]} Re3 {[%emt 0:0:21]} 38. Kd2 {[%emt 0:0:0]} Re4 {[%emt 0:0:5]} 39. c3 {[%emt 0:0:40]} f5 {[%emt 0:1:20]} 40. Rf1 {[%emt 0:0:0]} Ke6 {[%emt 0:0:0]} 41. Rh1 {[%emt 0:17:32]} Rh8 {[%emt 0:7:22]
} 42. h6 {[%emt 0:0:26]} Ng4 {[%emt 0:5:35]} 43. Rh3 {[%emt 0:0:0]} Rxd4+ {[%emt 0:2:43]} 44. cxd4 {[%emt 0:0:7]} Nxh6 {[%emt 0:0:4]} 45. Ke3 {[%emt 0:4:46]} f6 {[%emt 0:3:53]} 46. Kf4 {[%emt 0:0:25]} Nf7 {[%emt 0:0:10]
} 47. Re3+ {[%emt 0:4:2]} Kd6 {[%emt 0:0:2]} 48. Kxf5 {[%emt 0:0:40]
} Nd8 {[%emt 0:0:11]} 49. Bb5 {[%emt 0:2:1]} Rh2 {[%emt 0:0:0]} 50. Re8 {[%emt 0:0:26]} Rf2+ {[%emt 0:0:10]} 51. Kg4 {[%emt 0:0:46]} Ne6 {[%emt 0:0:9]} 52. Rb8 {[%emt 0:0:50]} 0-1

[Event "RUS-chT Premier 2021"]
[White "Paravyan,David"]
[Black "Musalov,Ruslan"]
[WhiteTeam "Wildberries Молодёжка"]
[BlackTeam "Киммерия"]
[Site "Sochi"]
[Round "4.2"]
[Annotator "RC"]
[Result "1-0"]
[Date "2021.05.04"]
[WhiteElo "2647"]
[BlackElo "2359"]
[PlyCount "99"]
[TimeControl "60"]

1. d4 {[%emt 0:0:0]} d5 {[%emt 0:1:19]} 2. c4 {[%emt 0:0:0]} e6 {[%emt 0:0:0]} 3. Nf3 {[%emt 0:0:0]} Nf6 {[%emt 0:0:25]} 4. g3 {[%emt 0:0:0]} dxc4 {[%emt 0:0:47]} 5. Bg2 {[%emt 0:0:4]} Bb4+ {[%emt 0:0:22]} 6. Bd2 {[%emt 0:0:26]
} c5 {[%emt 0:0:8]} 7. 0-0 {[%emt 0:12:10]} 0-0 {[%emt 0:6:29]
} 8. Qc1 {[%emt 0:14:12]} b5 {[%emt 0:15:51]} 9. a4 {[%emt 0:18:57]} bxa4 {[%emt 0:18:14]
} 10. dxc5 {[%emt 0:6:17]} Bxc5 {[%emt 0:9:6]} 11. Ng5 {[%emt 0:5:46]
} Nd5 {[%emt 0:6:35]} 12. e4 {[%emt 0:0:13]} Nb6 {[%emt 0:0:0]} 13. e5 {[%emt 0:1:38]} h6 {[%emt 0:0:16]} 14. Ne4 {[%emt 0:6:0]} Be7 {[%emt 0:8:1]
} 15. Bxh6 {[%emt 0:3:45]} gxh6 {[%emt 0:1:42]} 16. Qxh6 {[%emt 0:0:15]
} f5 {[%emt 0:2:31]} 17. Qg6+ {[%emt 0:4:9]} Kh8 {[%emt 0:0:0]} 18. Qh6+ {[%emt 0:1:23]} Kg8 {[%emt 0:0:9]} 19. Qg6+ {[%emt 0:0:4]} Kh8 {[%emt 0:0:4]} 20. Nbc3 {[%emt 0:2:2]} Nc6 {[%emt 0:15:31]} 21. Qh6+ {[%emt 0:18:3]
} Kg8 {[%emt 0:0:52]} 22. Qg6+ {[%emt 0:0:5]} Kh8 {[%emt 0:0:0]} 23. Nf6 {[%emt 0:4:19]} Bxf6 {[%emt 0:0:47]} 24. exf6 {[%emt 0:0:3]} Qxf6 {[%emt 0:0:4]} 25. Qh5+ {[%emt 0:0:13]} Kg7 {[%emt 0:1:4]} 26. Bxc6 {[%emt 0:0:4]
} Rb8 {[%emt 0:0:2]} 27. Nxa4 {[%emt 0:0:30]} Rf7 {[%emt 0:0:0]} 28. Nc3 {[%emt 0:1:6]} Bb7 {[%emt 0:0:50]} 29. Bxb7 {[%emt 0:0:31]} Rbxb7 {[%emt 0:0:21]} 30. Rfe1 {[%emt 0:0:36]} Rfe7 {[%emt 0:2:59]} 31. Ra5 {[%emt 0:0:56]} Rbd7 {[%emt 0:0:54]} 32. Rae5 {[%emt 0:1:5]} Rd2 {[%emt 0:0:0]} 33. Rxe6 {[%emt 0:0:27]} Rxe6 {[%emt 0:0:17]} 34. Rxe6 {[%emt 0:0:0]} Qxe6 {[%emt 0:0:10]} 35. Qg5+ {[%emt 0:0:4]} Kf7 {[%emt 0:0:31]} 36. Qxd2 {[%emt 0:0:7]} Nd7 {[%emt 0:0:48]} 37. Qd4 {[%emt 0:0:48]} a6 {[%emt 0:0:27]
} 38. Nd5 {[%emt 0:2:6]} Qe1+ {[%emt 0:0:57]} 39. Kg2 {[%emt 0:0:4]
} Qe4+ {[%emt 0:0:29]} 40. Qxe4 {[%emt 0:0:0]} fxe4 {[%emt 0:0:0]} 41. f4 {[%emt 0:17:22]} a5 {[%emt 0:10:28]} 42. Kf1 {[%emt 0:2:38]} Nc5 {[%emt 0:6:15]} 43. Ne3 {[%emt 0:0:10]} Nd3 {[%emt 0:0:9]} 44. Nxc4 {[%emt 0:0:5]
} a4 {[%emt 0:0:2]} 45. Ne5+ {[%emt 0:2:24]} Ke6 {[%emt 0:0:0]} 46. Nxd3 {[%emt 0:0:6]} exd3 {[%emt 0:0:4]} 47. Ke1 {[%emt 0:0:11]} Kd5 {[%emt 0:0:1]} 48. Kd2 {[%emt 0:0:17]} Kc4 {[%emt 0:0:5]} 49. f5 {[%emt 0:0:3]
} Kb3 {[%emt 0:0:3]} 50. f6 {[%emt 0:0:5]} 1-0

[Event "RUS-chT Premier 2021"]
[White "Alexeev,Alexey"]
[Black "Riazantsev,Alexander"]
[WhiteTeam "Киммерия"]
[BlackTeam "Wildberries Молодёжка"]
[Site "Sochi"]
[Round "4.3"]
[Annotator "RC"]
[Result "0-1"]
[Date "2021.05.04"]
[WhiteElo "2243"]
[BlackElo "2631"]
[PlyCount "90"]
[TimeControl "60"]

1. e4 {[%emt 0:0:0]} c5 {[%emt 0:0:0]} 2. a3 {[%emt 0:0:0]} g6 {[%emt 0:0:0]} 3. b4 {[%emt 0:0:0]} Bg7 {[%emt 0:0:16]} 4. Nc3 {[%emt 0:0:0]} d6 {[%emt 0:0:3]} 5. g3 {[%emt 0:0:3]} b6 {[%emt 0:8:35]} 6. Bg2 {[%emt 0:0:0]} Bb7 {[%emt 0:2:19]} 7. Nge2 {[%emt 0:0:27]} e6 {[%emt 0:8:20]} 8. 0-0 {[%emt 0:0:19]
} Ne7 {[%emt 0:0:3]} 9. Rb1 {[%emt 0:0:29]} Nbc6 {[%emt 0:0:0]} 10. d3 {[%emt 0:0:32]} 0-0 {[%emt 0:2:2]} 11. b5 {[%emt 0:0:14]} Nd4 {[%emt 0:0:54]
} 12. Nxd4 {[%emt 0:0:26]} cxd4 {[%emt 0:1:20]} 13. Ne2 {[%emt 0:0:7]
} Rc8 {[%emt 0:4:30]} 14. Bb2 {[%emt 0:0:13]} e5 {[%emt 0:0:0]} 15. c3 {[%emt 0:0:8]} dxc3 {[%emt 0:1:34]} 16. Bxc3 {[%emt 0:0:18]} Qd7 {[%emt 0:8:16]} 17. f4 {[%emt 0:1:36]} f5 {[%emt 0:8:47]} 18. Qb3+ {[%emt 0:6:32]
} Kh8 {[%emt 0:0:1]} 19. Bh3 {[%emt 0:0:41]} Ng8 {[%emt 0:0:0]} 20. fxe5 {[%emt 0:10:11]} dxe5 {[%emt 0:0:44]} 21. Rbd1 {[%emt 0:6:54]} Nh6 {[%emt 0:2:45]} 22. Qb2 {[%emt 0:9:48]} Rce8 {[%emt 0:2:17]} 23. a4 {[%emt 0:7:20]
} Rf7 {[%emt 0:1:39]} 24. Nc1 {[%emt 0:3:20]} Qe7 {[%emt 0:0:0]} 25. Bb4 {[%emt 0:3:47]} Qg5 {[%emt 0:1:2]} 26. Qe2 {[%emt 0:0:53]} f4 {[%emt 0:4:50]} 27. Bd2 {[%emt 0:1:52]} Ref8 {[%emt 0:7:30]} 28. Kh1 {[%emt 0:13:11]
} Qd8 {[%emt 0:2:36]} 29. Bb4 {[%emt 0:4:54]} Re8 {[%emt 0:0:0]} 30. Nb3 {[%emt 0:0:43]} Nf5 {[%emt 0:2:24]} 31. gxf4 {[%emt 0:7:14]} exf4 {[%emt 0:0:9]} 32. Rxf4 {[%emt 0:0:39]} Nd4 {[%emt 0:0:6]} 33. Nxd4 {[%emt 0:0:18]
} Rxf4 {[%emt 0:0:5]} 34. Nc6 {[%emt 0:0:16]} Qf6 {[%emt 0:0:0]} 35. Bd7 {[%emt 0:6:24]} Rf2 {[%emt 0:0:28]} 36. Qe3 {[%emt 0:1:46]} Rf1+ {[%emt 0:0:52]} 37. Rxf1 {[%emt 0:0:30]} Qxf1+ {[%emt 0:0:30]} 38. Qg1 Qxd3 {[%emt 0:1:2]} 39. Bxe8 {[%emt 0:0:26]} Qxe4+ {[%emt 0:0:10]} 40. Qg2 {[%emt 0:0:0]} Qb1+ {[%emt 0:0:0]} 41. Qg1 {[%emt 0:0:24]} Qxb4 {[%emt 0:0:0]} 42. Qe3 {[%emt 0:4:46]} Qxa4 {[%emt 0:0:56]} 43. Qd3 {[%emt 0:0:51]} Qd4 {[%emt 0:12:48]} 44. Qe2 {[%emt 0:9:8]} Qd5+ {[%emt 0:3:3]} 45. Qg2 {[%emt 0:3:5]
} Qxb5 {[%emt 0:0:43]} 0-1

[Event "RUS-chT Premier 2021"]
[White "Antipov,Mikhail Al."]
[Black "Babakekhyan,Artem"]
[WhiteTeam "Wildberries Молодёжка"]
[BlackTeam "Киммерия"]
[Site "Sochi"]
[Round "4.4"]
[Annotator "RC"]
[Result "1-0"]
[Date "2021.05.04"]
[WhiteElo "2609"]
[BlackElo "2214"]
[PlyCount "59"]
[TimeControl "60"]

1. e4 {[%emt 0:0:0]} c6 {[%emt 0:0:0]} 2. d4 {[%emt 0:0:47]} d5 {[%emt 0:0:0]} 3. exd5 {[%emt 0:0:4]} cxd5 {[%emt 0:0:0]} 4. Bd3 {[%emt 0:0:4]} Nc6 {[%emt 0:0:10]} 5. c3 {[%emt 0:0:5]} Nf6 {[%emt 0:1:7]} 6. h3 {[%emt 0:0:6]
} Qc7 {[%emt 0:1:8]} 7. Nf3 {[%emt 0:0:6]} g6 {[%emt 0:0:14]
} 8. Qc2 {[%emt 0:0:6]} Nh5 {[%emt 0:10:51]} 9. 0-0 {[%emt 0:0:15]} Nf4 {[%emt 0:1:46]
} 10. Bb5 {[%emt 0:0:27]} Bf5 {[%emt 0:4:32]} 11. Bxf4 {[%emt 0:12:2]
} Qxf4 {[%emt 0:0:31]} 12. Qa4 {[%emt 0:0:4]} Qd6 {[%emt 0:0:0]} 13. c4 {[%emt 0:5:16]} Bxb1 {[%emt 0:15:32]} 14. Ne5 {[%emt 0:29:23]} Bf5 {[%emt 0:8:27]} 15. cxd5 {[%emt 0:0:9]} Qxd5 {[%emt 0:0:15]} 16. Rac1 {[%emt 0:2:30]
} Rc8 {[%emt 0:27:53]} 17. Nxc6 {[%emt 0:14:39]} bxc6 {[%emt 0:0:0]} 18. Bxc6+ {[%emt 0:0:21]} Rxc6 {[%emt 0:0:19]} 19. Rxc6 {[%emt 0:0:0]} Kd8 {[%emt 0:0:26]} 20. Rfc1 {[%emt 0:3:32]} Bh6 {[%emt 0:5:17]} 21. R1c5 {[%emt 0:0:8]} Qe4 {[%emt 0:0:11]} 22. Qa5+ {[%emt 0:0:47]} Ke8 {[%emt 0:0:1]
} 23. Rc8+ {[%emt 0:3:2]} Bxc8 {[%emt 0:0:8]} 24. Rxc8+ {[%emt 0:0:4]
} Kd7 {[%emt 0:0:3]} 25. Rxh8 {[%emt 0:1:38]} Bf4 {[%emt 0:0:0]} 26. Qa4+ {[%emt 0:1:0]} Kd6 {[%emt 0:1:12]} 27. Qa6+ {[%emt 0:0:54]} Kc7 {[%emt 0:0:43]} 28. Qxa7+ {[%emt 0:0:5]} Kd6 {[%emt 0:0:16]} 29. Qb6+ {[%emt 0:0:6]
} Kd5 {[%emt 0:0:16]} 30. Qb7+ {[%emt 0:1:6]} 1-0

[Event "RUS-chT Premier 2021"]
[White "Pervakov,Sergey"]
[Black "Yuffa,Daniil"]
[WhiteTeam "Киммерия"]
[BlackTeam "Wildberries Молодёжка"]
[Site "Sochi"]
[Round "4.5"]
[Annotator "ChessBase"]
[Result "0-1"]
[Date "2021.05.04"]
[WhiteElo "2056"]
[BlackElo "2584"]
[PlyCount "70"]
[TimeControl "60"]

1. e4 {[%emt 0:0:0]} c5 {[%emt 0:0:0]} 2. a3 {[%emt 0:0:0]} Nc6 {[%emt 0:0:0]} 3. b4 {[%emt 0:0:0]} Nf6 {[%emt 0:0:0]} 4. b5 {[%emt 0:0:18]} Nd4 {[%emt 0:0:19]} 5. c3 {[%emt 0:0:9]} Ne6 {[%emt 0:0:6]} 6. e5 {[%emt 0:0:0]} Nd5 {[%emt 0:0:14]} 7. Qb3 {[%emt 0:0:29]} Ndc7 {[%emt 0:1:33]} 8. Nf3 {[%emt 0:1:49]} b6 {[%emt 0:6:41]} 9. d4 {[%emt 0:10:30]} Bb7 {[%emt 0:0:21]
} 10. Be3 {[%emt 0:0:38]} Bxf3 {[%emt 0:8:34]} 11. gxf3 {[%emt 0:0:28]} g6 {[%emt 0:0:24]
} 12. d5 {[%emt 0:23:39]} Ng7 {[%emt 0:0:43]} 13. f4 {[%emt 0:0:0]} d6 {[%emt 0:1:41]} 14. c4 {[%emt 0:1:35]} Nf5 {[%emt 0:4:12]} 15. Nd2 {[%emt 0:1:25]} Bg7 {[%emt 0:2:43]} 16. Nf3 {[%emt 0:0:34]} a6 {[%emt 0:0:0]} 17. bxa6 {[%emt 0:6:46]} Rxa6 {[%emt 0:0:12]} 18. Bd3 {[%emt 0:1:0]
} Qd7 {[%emt 0:0:50]} 19. Rg1 {[%emt 0:4:16]} 0-0 {[%emt 0:3:51]} 20. Rg5 {[%emt 0:5:18]
} Nxe3 {[%emt 0:1:43]} 21. fxe3 {[%emt 0:0:7]} f6 {[%emt 0:0:0]} 22. Rg3 {[%emt 0:6:19]} fxe5 {[%emt 0:1:8]} 23. fxe5 {[%emt 0:0:7]} dxe5 {[%emt 0:3:37]} 24. Be4 {[%emt 0:2:29]} Qa4 {[%emt 0:1:9]} 25. Qd3 {[%emt 0:5:12]
} b5 {[%emt 0:0:42]} 26. Nd2 {[%emt 0:6:39]} b4 {[%emt 0:1:7]
} 27. h4 bxa3 28. h5 {[%emt 0:3:21]} a2 {[%emt 0:1:42]} 29. hxg6 {[%emt 0:0:0]} h6 {[%emt 0:0:56]} 30. Qb3 {[%emt 0:2:25]} Qa5 {[%emt 0:5:26]} 31. Ke2 {[%emt 0:0:44]} Ne8 {[%emt 0:0:44]} 32. Qb5 {[%emt 0:2:15]} Qc3 {[%emt 0:0:0]} 33. Rgg1 {[%emt 0:1:12]} Raf6 {[%emt 0:2:24]} 34. Rxa2 {[%emt 0:2:23]} Nd6 {[%emt 0:0:24]} 35. Qa5 {[%emt 0:0:52]} Rf2+ {[%emt 0:0:30]} 0-1

[Event "RUS-chT Premier 2021"]
[White "Oparin,Grigoriy"]
[Black "Lobanov,Sergei"]
[WhiteTeam "Ладья"]
[BlackTeam "СШОР"]
[Site "Sochi"]
[Round "4.8"]
[Annotator "RC"]
[Result "1-0"]
[Date "2021.05.04"]
[WhiteElo "2652"]
[BlackElo "2520"]
[PlyCount "77"]
[TimeControl "60"]

1. d4 {[%emt 0:0:0]} Nf6 {[%emt 0:0:0]} 2. c4 {[%emt 0:0:0]} e6 {[%emt 0:0:0]} 3. Nf3 {[%emt 0:0:0]} d5 {[%emt 0:0:0]} 4. g3 {[%emt 0:0:52]} Be7 {[%emt 0:0:31]} 5. Bg2 {[%emt 0:0:6]} 0-0 {[%emt 0:0:11]} 6. Qc2 {[%emt 0:0:0]} b6 {[%emt 0:13:56]} 7. cxd5 {[%emt 0:0:51]} exd5 {[%emt 0:0:15]} 8. Bf4 {[%emt 0:2:22]} c5 {[%emt 0:0:34]} 9. 0-0 {[%emt 0:3:22]} Nc6 {[%emt 0:0:0]} 10. Nc3 {[%emt 0:6:5]} Be6 {[%emt 0:9:26]} 11. Rfd1 {[%emt 0:12:30]} Rc8 {[%emt 0:9:9]} 12. e3 {[%emt 0:2:48]} c4 {[%emt 0:8:19]} 13. Ne5 {[%emt 0:3:23]
} Nb4 {[%emt 0:1:53]} 14. Qe2 {[%emt 0:5:0]} Ne8 {[%emt 0:0:0]} 15. e4 {[%emt 0:13:57]} Nf6 {[%emt 0:6:4]} 16. a3 {[%emt 0:1:12]} Nd3 {[%emt 0:1:53]
} 17. Nxd3 {[%emt 0:0:9]} cxd3 {[%emt 0:0:4]} 18. Qxd3 {[%emt 0:0:14]
} dxe4 {[%emt 0:0:5]} 19. Nxe4 {[%emt 0:0:8]} Nd5 {[%emt 0:0:0]} 20. Bd2 {[%emt 0:1:3]} h6 {[%emt 0:1:44]} 21. Rac1 {[%emt 0:9:41]} Qd7 {[%emt 0:0:13]} 22. Rxc8 {[%emt 0:3:44]} Rxc8 {[%emt 0:0:1]} 23. Rc1 {[%emt 0:0:40]
} Rxc1+ {[%emt 0:8:7]} 24. Bxc1 {[%emt 0:0:5]} Bf5 {[%emt 0:0:0]} 25. Bd2 {[%emt 0:3:30]} Qe6 {[%emt 0:0:23]} 26. Qf3 {[%emt 0:1:7]} Bg4 {[%emt 0:14:40]} 27. Qb3 {[%emt 0:0:9]} Qd7 {[%emt 0:1:38]} 28. Nc3 {[%emt 0:1:42]
} Nf6 {[%emt 0:0:23]} 29. Be3 {[%emt 0:5:8]} Bh3 {[%emt 0:0:0]} 30. d5 {[%emt 0:0:44]} Bxg2 {[%emt 0:0:40]} 31. Kxg2 {[%emt 0:0:4]} Qf5 {[%emt 0:0:6]} 32. Qc4 {[%emt 0:4:57]} g5 {[%emt 0:0:5]} 33. h3 {[%emt 0:0:56]
} h5 {[%emt 0:1:37]} 34. Bd4 {[%emt 0:2:33]} g4 {[%emt 0:1:10]
} 35. hxg4 {[%emt 0:0:11]} hxg4 {[%emt 0:0:4]} 36. Qc6 {[%emt 0:3:41]} Qf3+ {[%emt 0:0:36]} 37. Kg1 {[%emt 0:0:6]} Nh5 {[%emt 0:1:22]} 38. Qe8+ {[%emt 0:3:18]
} Bf8 {[%emt 0:0:2]} 39. Qe5 {[%emt 0:0:23]} 1-0

[Event "RUS-chT Premier 2021"]
[White "Usmanov,Vasily"]
[Black "Timofeev,Artyom"]
[WhiteTeam "СШОР"]
[BlackTeam "Ладья"]
[Site "Sochi"]
[Round "4.9"]
[Annotator "ChessBase"]
[Result "1/2-1/2"]
[Date "2021.05.04"]
[WhiteElo "2447"]
[BlackElo "2594"]
[PlyCount "276"]
[TimeControl "60"]

1. c4 {[%emt 0:0:0]} Nf6 {[%emt 0:2:10]} 2. Nc3 {[%emt 0:0:0]} d5 {[%emt 0:1:15]
} 3. cxd5 {[%emt 0:0:26]} Nxd5 {[%emt 0:0:8]} 4. g3 {[%emt 0:0:0]} g6 {[%emt 0:4:52]} 5. Bg2 {[%emt 0:2:36]} Nb6 {[%emt 0:0:25]} 6. a4 {[%emt 0:3:7]} a5 {[%emt 0:2:52]} 7. h4 {[%emt 0:0:26]} h6 {[%emt 0:0:56]} 8. d3 {[%emt 0:2:16]} c6 {[%emt 0:4:30]} 9. Be3 {[%emt 0:2:58]} Na6 {[%emt 0:4:52]
} 10. Nf3 {[%emt 0:3:43]} Bg7 {[%emt 0:0:45]} 11. Qd2 {[%emt 0:0:0]} Nb4 {[%emt 0:5:27]} 12. 0-0 {[%emt 0:0:6]} N6d5 {[%emt 0:11:23]} 13. Bd4 {[%emt 0:4:7]} Nf6 {[%emt 0:1:8]} 14. Na2 {[%emt 0:6:54]} Nxa2 {[%emt 0:6:24]
} 15. Rxa2 {[%emt 0:0:26]} Be6 {[%emt 0:1:18]} 16. Ra3 {[%emt 0:2:37]
} Bd5 {[%emt 0:5:25]} 17. e4 {[%emt 0:9:10]} Be6 {[%emt 0:0:0]} 18. b4 {[%emt 0:0:13]} 0-0 {[%emt 0:6:38]} 19. Rb1 {[%emt 0:0:11]} Bc8 {[%emt 0:12:53]} 20. b5 {[%emt 0:8:17]} Bd7 {[%emt 0:0:46]} 21. bxc6 {[%emt 0:10:28]
} Bxc6 {[%emt 0:0:44]} 22. Qb2 {[%emt 0:0:22]} Qc8 {[%emt 0:0:0]} 23. Ne5 {[%emt 0:0:34]} Rd8 {[%emt 0:6:14]} 24. Bc3 {[%emt 0:6:23]} Qe6 {[%emt 0:1:1]} 25. Bf3 {[%emt 0:0:19]} g5 {[%emt 0:9:46]} 26. hxg5 {[%emt 0:7:27]
} hxg5 {[%emt 0:0:5]} 27. Be2 {[%emt 0:4:13]} Rac8 {[%emt 0:0:0]} 28. Qb3 {[%emt 0:6:28]} Qxb3 {[%emt 0:0:27]} 29. Rbxb3 {[%emt 0:0:0]} Ra8 {[%emt 0:0:35]} 30. Nc4 {[%emt 0:1:25]} Nd7 {[%emt 0:0:19]} 31. Bxa5 {[%emt 0:4:44]} Re8 {[%emt 0:0:8]} 32. Bd2 {[%emt 0:2:23]} Nc5 {[%emt 0:0:24]
} 33. Rb4 {[%emt 0:1:4]} Nxa4 {[%emt 0:1:3]} 34. Bxg5 {[%emt 0:1:3]
} b5 {[%emt 0:0:12]} 35. Nd2 {[%emt 0:1:38]} Nc3 {[%emt 0:0:0]} 36. Rxa8 {[%emt 0:0:12]} Nxe2+ {[%emt 0:0:10]} 37. Kf1 {[%emt 0:0:2]} Nxg3+ {[%emt 0:0:31]} 38. fxg3 {[%emt 0:0:2]} Rxa8 {[%emt 0:0:6]} 39. d4 {[%emt 0:0:10]
} e6 {[%emt 0:0:37]} 40. d5 {[%emt 0:0:0]} Bc3 {[%emt 0:0:0]
} 41. Rb3 {[%emt 0:1:53]} Bxd2 {[%emt 0:2:9]} 42. Bxd2 {[%emt 0:0:2]} exd5 {[%emt 0:0:7]} 43. Rc3 {[%emt 0:0:43]} Ra6 {[%emt 0:0:48]} 44. exd5 {[%emt 0:0:35]
} Bxd5 {[%emt 0:0:9]} 45. Rc8+ {[%emt 0:1:48]} Kh7 {[%emt 0:0:0]} 46. Rb8 {[%emt 0:0:1]} Kg6 {[%emt 0:1:6]} 47. Kf2 {[%emt 0:0:2]} Bc4 {[%emt 0:0:24]} 48. g4 {[%emt 0:0:5]} Kf6 {[%emt 0:1:6]} 49. Re8 {[%emt 0:3:46]
} Ra3 {[%emt 0:1:26]} 50. Be3 {[%emt 0:4:34]} Be6 {[%emt 0:0:0]} 51. Bd4+ {[%emt 0:1:2]} Kg5 {[%emt 0:0:27]} 52. Rg8+ {[%emt 0:1:39]} Kf4 {[%emt 0:0:46]} 53. g5 {[%emt 0:0:3]} Ra2+ {[%emt 0:6:26]} 54. Ke1 {[%emt 0:0:5]
} Ke4 {[%emt 0:0:7]} 55. Rd8 {[%emt 0:1:13]} b4 {[%emt 0:0:0]} 56. Bf6 {[%emt 0:0:59]} Bd5 {[%emt 0:10:33]} 57. Kd1 {[%emt 0:0:26]} b3 {[%emt 0:0:34]} 58. Kc1 {[%emt 0:0:5]} Rc2+ {[%emt 0:0:52]} 59. Kb1 {[%emt 0:0:5]
} Rg2 {[%emt 0:2:8]} 60. Rd6 {[%emt 0:0:16]} Be6 {[%emt 0:0:0]} 61. Rd4+ {[%emt 0:1:15]} Ke3 {[%emt 0:0:27]} 62. Ra4 {[%emt 0:2:35]} Bf5+ {[%emt 0:2:27]} 63. Ka1 {[%emt 0:0:2]} Kd3 {[%emt 0:0:36]} 64. Rd4+ {[%emt 0:0:33]
} Kc2 {[%emt 0:2:15]} 65. Rc4+ {[%emt 0:0:2]} Kd1 {[%emt 0:0:0]} 66. Rd4+ {[%emt 0:1:13]} Kc1 {[%emt 0:0:10]} 67. Rc4+ {[%emt 0:0:11]} Bc2 {[%emt 0:1:50]} 68. Rc7 {[%emt 0:3:12]} Rg4 {[%emt 0:3:51]} 69. Bb2+ {[%emt 0:2:7]
} Kd1 {[%emt 0:0:6]} 70. Rd7+ {[%emt 0:0:56]} Ke2 {[%emt 0:0:0]} 71. Bf6 {[%emt 0:1:25]} Ra4+ {[%emt 0:0:43]} 72. Kb2 {[%emt 0:0:2]} Ra2+ {[%emt 0:0:6]} 73. Kc1 {[%emt 0:5:20]} Bf5 {[%emt 0:1:10]} 74. Re7+ {[%emt 0:0:24]
} Kd3 {[%emt 0:0:12]} 75. Bb2 {[%emt 0:0:15]} Ra8 {[%emt 0:0:0]} 76. Rxf7 {[%emt 0:1:43]} Rc8+ {[%emt 0:0:10]} 77. Kb1 {[%emt 0:0:22]} Be4 {[%emt 0:0:47]} 78. Bf6 {[%emt 0:3:59]} Kd2+ {[%emt 0:0:17]} 79. Kb2 {[%emt 0:0:15]
} Rc2+ {[%emt 0:0:10]} 80. Ka3 {[%emt 0:0:13]} Ra2+ {[%emt 0:0:0]} 81. Kb4 {[%emt 0:0:8]} b2 {[%emt 0:0:10]} 82. Bxb2 {[%emt 0:0:49]} Rxb2+ {[%emt 0:0:6]} 83. Kc5 {[%emt 0:0:18]} Ke3 {[%emt 0:0:15]} 84. Rf1 {[%emt 0:0:52]
} Rg2 {[%emt 0:0:15]} 85. Re1+ {[%emt 0:0:22]} Kf4 {[%emt 0:0:0]} 86. Kd4 {[%emt 0:0:19]} Bf5 {[%emt 0:0:13]} 87. Rf1+ {[%emt 0:0:7]} Kxg5 {[%emt 0:0:7]} 88. Ke5 {[%emt 0:0:5]} Re2+ {[%emt 0:1:0]} 89. Kd5 {[%emt 0:1:43]
} Kf6 {[%emt 0:0:8]} 90. Rd1 {[%emt 0:0:16]} Re7 {[%emt 0:0:0]} 91. Rd4 {[%emt 0:0:13]} Re8 {[%emt 0:0:24]} 92. Rh4 {[%emt 0:0:27]} Rd8+ {[%emt 0:0:6]} 93. Kc5 {[%emt 0:0:2]} Ke5 {[%emt 0:0:10]} 94. Rh5 {[%emt 0:0:3]
} Rc8+ {[%emt 0:0:11]} 95. Kb5 {[%emt 0:0:1]} Ke4 {[%emt 0:0:0]} 96. Kb6 {[%emt 0:0:4]} Rc1 {[%emt 0:0:55]} 97. Kb5 {[%emt 0:0:20]} Bd7+ {[%emt 0:1:13]} 98. Kb6 {[%emt 0:0:4]} Kd4 {[%emt 0:0:16]} 99. Rh2 {[%emt 0:0:38]
} Rb1+ {[%emt 0:1:48]} 100. Kc7 {[%emt 0:0:5]} Bf5 {[%emt 0:0:0]} 101. Re2 {[%emt 0:1:17]} Kd5 {[%emt 0:0:43]} 102. Rd2+ {[%emt 0:0:0]} Kc5 {[%emt 0:0:8]} 103. Re2 {[%emt 0:0:14]} Bd3 {[%emt 0:1:26]} 104. Re5+ {[%emt 0:0:23]} Kd4 {[%emt 0:0:6]} 105. Rh5 {[%emt 0:0:33]} Be4 {[%emt 0:0:17]
} 106. Rh2 {[%emt 0:0:20]} Kc5 {[%emt 0:0:33]} 107. Kd7 {[%emt 0:0:9]
} Bd5 {[%emt 0:1:8]} 108. Rc2+ {[%emt 0:0:13]} Bc4 {[%emt 0:0:0]} 109. Ke7 {[%emt 0:0:13]} Rf1 {[%emt 0:0:9]} 110. Ke8 {[%emt 0:0:16]
} Rf4 {[%emt 0:0:21]} 111. Kd7 {[%emt 0:0:56]} Rf7+ {[%emt 0:0:12]} 112. Kc8 {[%emt 0:0:2]} Kd5 {[%emt 0:0:27]} 113. Kb8 {[%emt 0:0:3]} Ba6 {[%emt 0:0:0]} 114. Rc7 {[%emt 0:0:2]} Rf8+ {[%emt 0:0:44]} 115. Ka7 {[%emt 0:0:0]} Kd6 {[%emt 0:0:19]} 116. Rc1 {[%emt 0:2:22]} Be2 {[%emt 0:0:55]} 117. Kb6 {[%emt 0:0:21]} Rb8+ {[%emt 0:0:15]} 118. Ka5 {[%emt 0:0:7]} Kd5 {[%emt 0:0:15]
} 119. Ka4 {[%emt 0:5:48]} Kd4 {[%emt 0:0:12]} 120. Ka3 {[%emt 0:2:7]
} Rb6 {[%emt 0:0:47]} 121. Rc2 {[%emt 0:0:10]} Bd3 {[%emt 0:0:0]} 122. Rb2 {[%emt 0:0:6]} Rc6 {[%emt 0:0:22]} 123. Kb4 {[%emt 0:0:17]} Rc7 {[%emt 0:0:40]} 124. Ka5 {[%emt 0:0:39]} Rc8 {[%emt 0:0:23]} 125. Rb6 {[%emt 0:1:11]
} Kc4 {[%emt 0:0:37]} 126. Rb4+ {[%emt 0:0:40]} Kc3 {[%emt 0:0:0]} 127. Rb7 {[%emt 0:2:17]} Rc6 {[%emt 0:0:33]} 128. Ra7 {[%emt 0:0:1]
} Bc4 {[%emt 0:0:39]} 129. Ra8 {[%emt 0:0:26]} Kd4 {[%emt 0:0:41]} 130. Rb8 {[%emt 0:0:30]} Ra6+ {[%emt 0:0:21]} 131. Kb4 {[%emt 0:0:3]} Ra1 {[%emt 0:0:0]} 132. Rd8+ {[%emt 0:0:47]} Bd5 {[%emt 0:0:10]} 133. Kb5 {[%emt 0:0:0]} Rb1+ {[%emt 0:0:5]} 134. Ka4 {[%emt 0:0:50]} Rb7 {[%emt 0:0:45]} 135. Rc8 {[%emt 0:2:29]} Bc4 {[%emt 0:0:7]} 136. Ka5 {[%emt 0:0:34]} Rb5+ {[%emt 0:0:30]
} 137. Ka4 {[%emt 0:0:2]} Kc3 {[%emt 0:0:16]} 138. Rc6 {[%emt 0:1:0]
} Rh5 {[%emt 0:0:57]} 1/2-1/2